bitfinex-derivatives/quotes_SOLF0:USTF0_20220106
["timestamp","ask_amount","ask_price","bid_price","bid_amount"]
[1641494409121,41.48871248,153.08,153.04,4.60794567]
[1641494411525,13.82392248,153.06,153.03,4.60794567]
[1641494412531,13.82392248,153.05,153.01,4.60794567]
[1641494415134,13.82392248,153.06,153.02,4.60794567]
[1641494415733,13.82392248,153.05,153.02,4.60794567]
[1641494416934,13.82392248,153.05,153.01,4.60794567]
[1641494418936,20.93792248,153.05,153.01,4.60794567]
[1641494420036,4.0,153.03,152.98,22.18814836]
[1641494420241,41.48871248,153.02,152.99,4.60947805]
[1641494420438,66.1301,153.01,152.95,22.18814836]
[1641494420638,6.759,153.01,152.95,22.18814836]
[1641494421441,6.759,153.01,152.91,66.9898]
[1641494421442,16.9895767,153.0,152.93,13.82392248]
[1641494422943,13.82392248,152.99,152.92,22.18814836]
[1641494423741,16.9895767,153.0,152.93,13.82392248]
[1641494424742,16.9895767,153.01,152.94,13.82392248]
[1641494426546,13.82392248,153.0,152.93,22.18814836]
[1641494427547,16.9895767,153.01,152.94,13.82392248]
[1641494430050,4.0,153.0,152.94,13.82392248]
[1641494430254,4.0,152.99,152.94,13.82392248]
[1641494430451,9.754,153.0,152.84,63.0752]
[1641494430650,9.754,153.0,152.84,90.73999]
[1641494430651,27.66479,152.96,152.84,90.73999]
[1641494430850,37.72179,152.96,152.84,90.73999]
[1641494431254,4.0,152.93,152.84,90.73999]
[1641494431450,4.0,152.93,152.82,83.14962786]
[1641494431451,65.7343,152.95,152.82,83.14962786]
[1641494431750,4.0,152.94,152.82,83.14962786]
[1641494431950,65.7343,152.95,152.82,83.14962786]
[1641494432351,65.7343,152.95,152.82,27.66479]
[1641494432750,69.7343,152.95,152.82,27.66479]
[1641494432953,4.0,152.94,152.82,27.66479]
[1641494433350,4.0,152.94,152.82,38.90700483]
[1641494433952,4.0,152.92,152.82,38.90700483]
[1641494434153,10.868,152.92,152.82,38.90700483]
[1641494434654,27.66479,152.9,152.82,38.90700483]
[1641494435556,27.66479,152.9,152.82,27.66479]
[1641494436960,27.66479,152.9,152.82,38.90506248]
[1641494437860,27.66479,152.9,152.82,42.90496248]
[1641494438061,27.66479,152.9,152.82,38.90506248]
[1641494438760,27.66479,152.93,152.82,38.90506248]
[1641494438962,27.66479,152.93,152.82,42.90496248]
[1641494440363,27.66479,152.93,152.82,38.90506248]
[1641494441062,20.28575145,152.93,152.82,38.90506248]
[1641494441462,20.28575145,152.93,152.82,42.90496248]
[1641494442564,20.28575145,152.93,152.82,38.90506248]
[1641494442764,20.28575145,152.93,152.82,66.56985248]
[1641494443366,20.28575145,152.93,152.83,11.24027248]
[1641494444268,24.28575145,152.93,152.83,11.24027248]
[1641494444870,20.28575145,152.93,152.83,11.24027248]
[1641494445071,24.28575145,152.93,152.83,11.24027248]
[1641494446472,4.0,152.91,152.83,11.24027248]
[1641494446675,8.459,152.91,152.83,11.24027248]
[1641494447173,8.459,152.91,152.82,55.32958]
[1641494447374,4.0,152.89,152.82,55.32958]
[1641494447775,67.5312,152.9,152.82,55.32958]
[1641494448576,4.0,152.89,152.82,55.32958]
[1641494449178,4.0,152.88,152.82,55.32958]
[1641494449578,4.0,152.89,152.82,55.32958]
[1641494449777,4.0,152.88,152.82,55.32958]
[1641494450079,4.0,152.89,152.82,55.32958]
[1641494450279,71.5312,152.9,152.82,55.32958]
[1641494450482,67.5312,152.9,152.82,55.32958]
[1641494451979,67.5312,152.9,152.83,6.91510582]
[1641494454081,67.5312,152.9,152.82,55.32958]
[1641494454484,47.95054145,152.93,152.82,55.32958]
[1641494454683,64.8935,152.95,152.86,3.9999]
[1641494454884,64.8935,152.95,152.87,27.66479]
[1641494455983,64.8935,152.95,152.87,34.26279]
[1641494456185,27.66479,152.96,152.87,34.26279]
[1641494456383,27.66479,152.96,152.88,6.91501538]
[1641494456785,62.445,152.98,152.88,6.91501538]
[1641494457084,27.66479,152.99,152.88,6.91501538]
[1641494458084,67.1108,153.0,152.88,6.91501538]
[1641494458283,64.54197856,153.01,152.91,3.9999]
[1641494458483,27.66479,153.01,152.91,9.5319]
[1641494458685,36.87718856,153.03,152.91,9.5319]
[1641494458982,36.87718856,153.03,152.93,27.66479]
[1641494459583,76.06593973,153.04,152.93,27.66479]
[1641494460685,13.82801537,153.02,152.95,13.82801537]
[1641494460884,13.82801537,153.02,152.96,3.9999]
[1641494461084,13.82801537,153.02,152.97,3.9999]
[1641494461384,13.82801537,153.04,152.97,13.82801537]
[1641494462385,13.82801537,153.07,152.99,13.82801537]
[1641494463585,13.82801537,153.06,152.99,13.82801537]
[1641494463884,24.40101537,153.06,152.99,13.82801537]
[1641494464085,20.40101537,153.06,152.99,13.82801537]
[1641494464786,13.82801537,153.05,152.98,13.82801537]
[1641494465787,13.82801537,153.04,152.97,41.49280537]
[1641494467190,13.82801537,153.06,152.99,13.82801537]
[1641494468291,13.82801537,153.07,153.0,13.82801537]
[1641494469292,13.82801537,153.06,152.99,13.82801537]
[1641494471499,21.05801537,153.06,152.99,13.82801537]
[1641494472098,13.82801537,153.05,152.98,22.18338825]
[1641494473098,16.99548646,153.05,152.98,22.18338825]
[1641494475498,44.66027646,153.05,152.98,15.26886911]
[1641494475699,13.82801537,153.03,152.98,1.44085374]
[1641494479601,17.82801537,153.03,152.98,1.44085374]
[1641494479801,4.0,153.02,152.98,1.44085374]
[1641494480001,4.719,153.02,152.98,1.44085374]
[1641494480201,25.71448646,153.02,152.95,13.82801537]
[1641494480603,4.0,153.01,152.95,13.82801537]
[1641494480805,4.0,153.0,152.95,13.82801537]
[1641494481002,4.0,153.0,152.97,4.60997822]
[1641494481202,4.0,152.98,152.97,4.60997822]
[1641494481402,7.129,152.98,152.94,1.44085374]
[1641494481803,27.66479,152.96,152.94,1.44085374]
[1641494482203,27.66479,152.96,152.91,13.82801537]
[1641494487510,3.17038606,152.95,152.91,13.82801537]
[1641494488513,27.66479,152.96,152.91,13.82801537]
[1641494489813,80.90181537,152.98,152.91,13.82801537]
[1641494490111,13.82801537,152.98,152.91,13.82801537]
[1641494490512,27.66479,152.99,152.93,13.82801537]
[1641494490913,13.82801537,153.0,152.93,18.93001537]
[1641494491116,13.82801537,153.0,152.95,3.9999]
[1641494491316,1.537e-05,153.0,152.96,3.9999]
[1641494491515,36.87718856,153.04,152.96,3.9999]
[1641494491715,13.82765954,153.02,153.0,27.66479]
[1641494492616,36.87718856,153.05,153.0,27.66479]
[1641494492815,14.68375969,153.06,153.01,1.44085374]
[1641494493618,3.16679903,153.06,153.01,1.44085374]
[1641494494416,14.68531178,153.07,153.01,1.44085374]
[1641494494817,4.0,153.06,153.01,1.44085374]
[1641494495017,4.0,153.03,152.91,121.13993786]
[1641494495218,5.52,153.06,152.91,121.13993786]
[1641494495219,4.0,153.04,152.91,121.13993786]
[1641494495419,4.0,153.03,152.92,11.23435643]
[1641494495618,4.0,153.02,152.92,11.23435643]
[1641494495821,38.80779,153.02,152.93,27.66479]
[1641494496722,38.80779,153.02,152.94,6.91360907]
[1641494497122,34.80779,153.02,152.94,6.91360907]
[1641494497523,34.80779,153.02,152.93,27.66479]
[1641494497724,11.52475103,153.01,152.91,93.31989]
[1641494497924,11.52475103,153.01,152.91,27.66479]
[1641494498726,62.47258,153.02,152.92,6.9161822]
[1641494499325,66.47258,153.02,152.92,6.9161822]
[1641494500725,62.47258,153.02,152.92,6.9161822]
[1641494502628,66.47258,153.02,152.92,6.9161822]
[1641494502827,62.47258,153.02,152.92,6.9161822]
[1641494504130,62.47258,153.02,152.92,10.9160822]
[1641494504429,7.143,153.02,152.92,10.9160822]
[1641494504628,36.87718856,153.05,152.92,6.9161822]
[1641494504928,36.87718856,153.05,152.93,3.9999]
[1641494505229,36.87718856,153.05,152.94,3.9999]
[1641494505429,36.87718856,153.07,152.93,3.9999]
[1641494505630,4.0,153.06,152.92,10.9160822]
[1641494505829,40.87718856,153.07,152.92,6.9161822]
[1641494506029,27.66479,153.06,152.97,27.66479]
[1641494506231,31.66479,153.06,152.97,27.66479]
[1641494507233,11.51833593,153.05,152.97,27.66479]
[1641494507434,15.51833593,153.05,152.97,27.66479]
[1641494507636,11.51833593,153.05,152.97,27.66479]
[1641494509036,11.51833593,153.05,152.93,65.0335]
[1641494509237,11.51833593,153.05,152.93,69.0334]
[1641494509437,64.54197856,153.06,152.93,65.0335]
[1641494509638,64.54197856,153.06,152.93,75.7824]
[1641494509838,64.54197856,153.06,152.93,71.7825]
[1641494510037,92.20676856,153.06,152.95,27.66479]
[1641494510239,11.51833593,153.05,152.95,27.66479]
[1641494511038,11.51833593,153.05,152.96,6.91706066]
[1641494511837,55.32958,153.06,152.95,27.66479]
[1641494512638,59.32958,153.06,152.95,27.66479]
[1641494513138,55.32958,153.06,152.95,27.66479]
[1641494513738,59.32958,153.06,152.95,27.66479]
[1641494515138,4.0,153.05,152.95,27.66479]
[1641494515341,4.0,153.03,152.95,27.66479]
[1641494515738,4.0,153.03,152.91,27.66479]
[1641494515940,71.5731,153.02,152.91,27.66479]
[1641494516140,27.66479,153.0,152.91,27.66479]
[1641494516341,34.10679,153.0,152.91,27.66479]
[1641494517443,34.10679,153.0,152.92,6.91595527]
[1641494519043,4.0,152.97,152.92,6.91595527]
[1641494519245,4.0,152.98,152.92,6.91595527]
[1641494519443,4.0,152.97,152.92,6.91595527]
[1641494520047,4.0,152.98,152.92,6.91595527]
[1641494520248,27.66479,152.93,152.86,65.9509]
[1641494520445,27.66479,152.93,152.86,3.9999]
[1641494520648,11.52496551,152.99,152.86,3.9999]
[1641494520847,11.52496551,152.99,152.86,76.0897]
[1641494521146,27.66479,153.0,152.86,76.0897]
[1641494522248,41.49405933,153.0,152.93,13.82926933]
[1641494522850,41.49405933,153.0,152.93,20.16026933]
[1641494523251,27.66479,153.0,152.94,13.82926933]
[1641494524252,13.82926933,153.01,152.94,13.82926933]
[1641494524750,67.5731,153.02,152.96,13.82926933]
[1641494525852,67.5731,153.02,152.97,13.82926933]
[1641494526454,27.66479,153.03,152.97,13.82926933]
[1641494527155,27.66479,153.03,152.97,18.66026933]
[1641494528557,27.66479,153.03,152.97,13.82926933]
[1641494530557,27.66479,153.03,152.97,20.30226933]
[1641494530759,13.82926933,153.04,152.97,20.30226933]
[1641494531359,13.82926933,153.04,152.98,3.9999]
[1641494531559,13.82926933,153.04,152.97,24.30216933]
[1641494531758,13.82926933,153.07,153.0,13.82926933]
[1641494533861,41.49405933,153.08,153.01,13.82926933]
[1641494534061,41.49405933,153.08,153.01,19.95326933]
[1641494535663,3.16498708,153.07,153.02,1.44205687]
[1641494536664,3.16498708,153.07,153.02,27.66479]
[1641494537566,27.66479,153.08,153.02,27.66479]
[1641494538768,27.66479,153.08,153.02,32.60479]
[1641494538967,92.66909,153.11,153.02,32.60479]
[1641494539368,61.9093,153.12,153.02,32.60479]
[1641494539769,13.82926933,153.14,153.02,32.60479]
[1641494539970,83.12506933,153.15,153.03,1.43234198]
[1641494540169,79.12506933,153.15,153.03,1.43234198]
[1641494540568,83.12506933,153.15,153.03,1.43234198]
[1641494540768,27.66479,153.12,153.03,1.43234198]
[1641494542171,16.97119837,153.11,153.07,4.60623782]
[1641494544574,3.14192904,153.11,153.08,4.60623782]
[1641494545175,3.14192904,153.11,153.09,4.60623782]
[1641494545974,3.14192904,153.11,153.05,45.49395933]
[1641494546177,3.14192904,153.13,153.09,13.82926933]
[1641494547175,3.14192904,153.13,153.12,4.60495716]
[1641494547976,16.97119837,153.16,153.12,4.60495716]
[1641494549177,3.14192904,153.16,153.13,4.60495716]
[1641494550278,13.82926933,153.17,153.15,4.60495716]
[1641494550478,13.82926933,153.19,153.15,4.60495716]
[1641494550879,13.82926933,153.19,153.16,27.66479]
[1641494551279,13.82926933,153.19,153.16,32.26974716]
[1641494551778,13.82926933,153.19,153.16,4.60495716]
[1641494552177,13.82926933,153.19,153.15,4.60495716]
[1641494552777,41.49405933,153.19,153.15,4.60495716]
[1641494552978,13.82926933,153.17,153.13,4.60495716]
[1641494554581,13.82926933,153.16,153.12,4.60495716]
[1641494555282,13.82926933,153.15,153.12,4.60495716]
[1641494556288,13.82926933,153.17,153.14,4.60495716]
[1641494557188,3.14192904,153.18,153.09,27.66479]
[1641494557890,4.0,153.15,153.09,27.66479]
[1641494558090,10.625,153.15,153.09,27.66479]
[1641494558492,4.0,153.13,153.09,27.66479]
[1641494558690,4.0,153.12,153.08,4.60495716]
[1641494558992,27.66479,153.09,153.04,4.60495716]
[1641494559190,32.23779,153.09,153.04,4.60495716]
[1641494559992,32.23779,153.09,153.01,18.43422649]
[1641494560194,32.23779,153.09,153.01,4.60495716]
[1641494560996,27.66479,153.06,153.01,4.60495716]
[1641494561397,27.66479,153.06,153.0,4.60495716]
[1641494564696,27.66479,153.06,153.01,4.60495716]
[1641494566900,27.66479,153.06,153.01,8.60485716]
[1641494567102,27.66479,153.09,153.01,8.60485716]
[1641494567301,4.57029547,153.07,153.04,13.82926933]
[1641494567500,4.57029547,153.07,153.04,20.99126933]
[1641494568401,32.23508547,153.09,153.05,15.26060981]
[1641494569100,3.1643507,153.08,153.07,4.60651363]
[1641494570202,27.66479,153.09,153.04,13.82926933]
[1641494570902,27.66479,153.09,153.05,13.82926933]
[1641494571102,27.66479,153.06,153.05,13.82926933]
[1641494572703,30.82978234,153.06,153.01,13.82926933]
[1641494573103,58.49457234,153.06,153.01,13.82926933]
[1641494573504,55.32958,153.06,153.01,13.82926933]
[1641494574405,55.32958,153.06,153.01,15.26060981]
[1641494575105,55.32958,153.06,153.01,13.82926933]
[1641494576705,55.32958,153.06,153.02,13.82926933]
[1641494580012,55.32958,153.06,152.99,1.43134048]
[1641494580711,55.32958,153.06,152.99,5.43124048]
[1641494581413,55.32958,153.06,152.99,1.43134048]
[1641494581613,55.32958,153.06,153.01,3.9999]
[1641494581813,55.32958,153.06,153.01,10.6659]
[1641494582616,55.32958,153.06,153.02,1.43134048]
[1641494583315,55.32958,153.06,153.02,5.43124048]
[1641494583514,84.55945753,153.17,153.02,5.43124048]
[1641494583715,64.062,153.16,153.03,63.2576]
[1641494584116,64.062,153.16,153.04,3.9999]
[1641494584318,64.062,153.16,153.03,67.2575]
[1641494585219,27.66479,153.08,153.04,1.43134048]
[1641494585820,20.29643646,153.08,153.04,1.43134048]
[1641494586421,27.66479,153.11,153.07,3.9999]
[1641494586621,68.62922904,153.16,153.08,3.9999]
[1641494587021,4.56722904,153.16,153.08,3.9999]
[1641494587221,4.56722904,153.16,153.13,27.66479]
[1641494587421,3.16259864,153.15,153.13,37.68645982]
[1641494588722,16.86945617,153.18,153.14,6.0360103]
[1641494589725,13.70685753,153.19,153.15,4.60466982]
[1641494590627,14.66270096,153.21,153.17,4.60466982]
[1641494590628,13.70685753,153.2,153.17,4.60466982]
[1641494590828,13.70685753,153.2,153.17,10.70766982]
[1641494591329,13.70685753,153.2,153.19,55.32958]
[1641494592528,13.70685753,153.22,153.19,55.32958]
[1641494593829,13.70685753,153.24,153.2,6.04720321]
[1641494594832,13.70685753,153.24,153.19,65.37024982]
[1641494595031,13.70685753,153.23,153.19,65.37024982]
[1641494595230,13.70685753,153.23,153.22,27.66479]
[1641494595931,13.70685753,153.25,153.22,27.66479]
[1641494597132,13.70685753,153.26,153.22,32.26945982]
[1641494597331,13.70685753,153.26,153.24,27.66479]
[1641494598233,13.70685753,153.25,153.24,27.66479]
[1641494598934,13.70685753,153.26,153.24,27.66479]
[1641494601639,13.70685753,153.27,153.24,32.26945982]
[1641494602541,13.70685753,153.28,153.25,6.04748061]
[1641494603442,13.70685753,153.27,153.24,27.66479]
[1641494604340,16.86945617,153.27,153.24,27.66479]
[1641494605241,16.86945617,153.27,153.24,9e-05]
[1641494605541,4.0,153.26,153.23,4.60466982]
[1641494605740,20.86945617,153.27,153.23,4.60466982]
[1641494605941,4.0,153.26,153.23,4.60466982]
[1641494606143,4.0,153.26,153.13,70.0163]
[1641494606341,4.592,153.28,153.13,70.0163]
[1641494606342,4.0,153.25,153.13,70.0163]
[1641494606542,4.0,153.25,153.13,66.0164]
[1641494607243,4.0,153.25,153.16,27.66479]
[1641494607643,4.0,153.24,153.16,27.66479]
[1641494608044,4.0,153.23,153.16,27.66479]
[1641494608245,61.6164,153.26,153.16,27.66479]
[1641494608544,65.6164,153.26,153.16,27.66479]
[1641494609344,4.0,153.24,153.16,27.66479]
[1641494609545,9.835,153.24,153.16,27.66479]
[1641494610146,16.86690376,153.23,153.2,4.60466982]
[1641494610345,20.86690376,153.23,153.2,4.60466982]
[1641494610546,4.0,153.22,153.2,4.60466982]
[1641494611045,4.0,153.21,153.17,1.44249658]
[1641494611247,4.0,153.19,153.15,13.82926933]
[1641494611447,9.904,153.19,153.15,13.82926933]
[1641494611649,5.904,153.19,153.15,13.82926933]
[1641494612047,19.61085753,153.19,153.12,20.74343739]
[1641494612847,19.61085753,153.19,153.12,24.74333739]
[1641494613050,79.33235753,153.21,153.14,13.82926933]
[1641494613249,79.33235753,153.21,153.17,27.66479]
[1641494613449,13.70685753,153.21,153.17,27.66479]
[1641494613850,59.32958,153.27,153.17,27.66479]
[1641494613851,13.70685753,153.22,153.17,27.66479]
[1641494614851,81.04995753,153.25,153.18,20.74325224]
[1641494615250,81.04995753,153.25,153.21,27.66479]
[1641494615450,13.70685753,153.25,153.21,27.66479]
[1641494615849,17.70685753,153.26,153.21,27.66479]
[1641494616050,17.70685753,153.26,153.19,13.82926933]
[1641494616250,23.09885753,153.26,153.19,13.82926933]
[1641494617252,17.70685753,153.26,153.21,27.66479]
[1641494618053,13.70685753,153.26,153.21,27.66479]
[1641494619452,13.70685753,153.26,153.18,13.82926933]
[1641494620254,13.70685753,153.26,153.19,13.82926933]
[1641494620855,13.70685753,153.25,153.18,20.74241058]
[1641494621757,13.70685753,153.26,153.19,13.82926933]
[1641494622457,17.70685753,153.26,153.19,13.82926933]
[1641494622656,13.70685753,153.26,153.19,13.82926933]
[1641494623456,13.70685753,153.26,153.2,27.66479]
[1641494623859,17.70685753,153.26,153.2,27.66479]
[1641494624264,4.0,153.26,153.2,41.49405933]
[1641494624759,13.70685753,153.27,153.2,41.49405933]
[1641494625059,13.70685753,153.26,153.2,27.66479]
[1641494627460,13.70685753,153.27,153.2,27.66479]
[1641494627659,13.70685753,153.27,153.2,32.49179]
[1641494628661,13.70685753,153.27,153.2,46.32105933]
[1641494629562,75.46985753,153.28,153.2,46.32105933]
[1641494631367,61.763,153.28,153.21,20.73719463]
[1641494632064,61.763,153.28,153.2,27.66479]
[1641494632065,75.46985753,153.28,153.2,41.49405933]
[1641494633165,13.70685753,153.27,153.2,27.66479]
[1641494634570,61.763,153.28,153.2,27.66479]
[1641494634767,61.763,153.28,153.21,20.73715173]
[1641494635567,75.46985753,153.28,153.23,27.66479]
[1641494637770,75.46985753,153.28,153.21,13.82926933]
[1641494638870,13.70685753,153.26,153.2,27.66479]
[1641494639968,13.70685753,153.27,153.2,41.49405933]
[1641494640169,13.70685753,153.27,153.2,46.50205933]
[1641494640670,79.46985753,153.28,153.21,20.74233695]
[1641494641072,4.0,153.27,153.21,20.74233695]
[1641494641272,79.46985753,153.28,153.21,13.82926933]
[1641494641571,75.46985753,153.28,153.2,46.50205933]
[1641494642081,13.70685753,153.28,153.2,46.50205933]
[1641494642579,13.70685753,153.28,153.2,50.50195933]
[1641494642781,13.70685753,153.3,153.22,13.82926933]
[1641494643582,13.70685753,153.3,153.25,3.9999]
[1641494643783,13.70685753,153.3,153.26,27.66479]
[1641494643982,27.66479,153.34,153.26,27.66479]
[1641494643983,13.70685753,153.32,153.26,27.66479]
[1641494645185,13.70685753,153.33,153.26,27.66479]
[1641494645785,13.70685753,153.33,153.26,31.66469]
[1641494645985,13.70685753,153.33,153.26,27.66479]
[1641494646286,13.70685753,153.33,153.27,3.9999]
[1641494646487,13.70685753,153.33,153.26,31.66469]
[1641494646687,13.70685753,153.34,153.26,31.66469]
[1641494646886,13.70685753,153.34,153.26,27.66479]
[1641494647888,13.70685753,153.34,153.32,27.66479]
[1641494649591,13.70685753,153.34,153.29,7.044]
[1641494649992,13.70685753,153.33,153.29,7.044]
[1641494652096,13.70685753,153.33,153.26,55.32958]
[1641494652699,13.70685753,153.32,153.27,1.44169804]
[1641494653400,17.70685753,153.32,153.27,1.44169804]
[1641494654401,20.86027685,153.31,153.27,1.44169804]
[1641494654602,16.86027685,153.31,153.27,1.44169804]
[1641494655005,20.86027685,153.31,153.27,1.44169804]
[1641494655203,13.70685753,153.3,153.22,76.47936933]
[1641494655806,13.70685753,153.3,153.22,80.47926933]
[1641494656007,13.70685753,153.3,153.22,76.47936933]
[1641494656206,13.70685753,153.3,153.26,27.66479]
[1641494656410,13.70685753,153.29,153.26,27.66479]
[1641494657710,13.70685753,153.31,153.26,27.66479]
[1641494658511,20.86027685,153.32,153.27,1.44168578]
[1641494658911,16.86027685,153.32,153.27,1.44168578]
[1641494659512,13.70685753,153.31,153.27,1.44168578]
[1641494660613,17.70685753,153.31,153.27,1.44168578]
[1641494660814,13.70685753,153.31,153.27,1.44168578]
[1641494661514,13.70685753,153.3,153.27,1.44168578]
[1641494662918,3.15341932,153.32,153.27,1.44168578]
[1641494664216,7.15341932,153.32,153.27,1.44168578]
[1641494664617,4.0,153.31,153.27,1.44168578]
[1641494665321,4.0,153.3,153.27,1.44168578]
[1641494665520,4.0,153.28,153.26,13.82926933]
[1641494665718,4.0,153.27,153.19,67.2942]
[1641494665919,4.0,153.26,153.19,67.2942]
[1641494666118,4.0,153.26,153.12,3.9999]
[1641494666119,9.448,153.26,153.15,55.48483786]
[1641494666319,4.0,153.25,153.15,55.48483786]
[1641494666519,27.66479,153.25,153.16,27.66479]
[1641494667219,5.448,153.26,153.16,27.66479]
[1641494667821,5.448,153.26,153.16,31.66469]
[1641494668023,27.66479,153.27,153.16,31.66469]
[1641494668223,27.66479,153.27,153.17,3.9999]
[1641494668424,27.66479,153.3,153.22,27.66479]
[1641494668623,27.66479,153.3,153.22,34.57379]
[1641494669625,27.66479,153.3,153.23,6.90270925]
[1641494669826,4.0,153.32,153.23,6.90270925]
[1641494671430,4.0,153.32,153.23,71.33420925]
[1641494671629,4.0,153.31,153.26,4.59390676]
[1641494671830,4.59390676,153.28,153.26,4.59390676]
[1641494672431,8.59390676,153.28,153.26,4.59390676]
[1641494672631,8.59390676,153.28,153.24,6.90270925]
[1641494672831,4.59390676,153.28,153.24,6.90270925]
[1641494673432,4.0,153.3,153.26,4.60035841]
[1641494674033,15.48801041,153.31,153.26,4.60035841]
[1641494674636,15.48801041,153.31,153.27,4.60035841]
[1641494674835,4.0,153.3,153.27,4.60035841]
[1641494675035,4.0,153.3,153.27,0.20035841]
[1641494675236,4.0,153.3,153.23,6.90270925]
[1641494675437,15.48801041,153.31,153.22,6.909]
[1641494676037,4.0,153.3,153.22,6.909]
[1641494676638,27.66479,153.29,153.22,6.909]
[1641494676841,94.04349,153.29,153.22,6.909]
[1641494678142,98.04349,153.29,153.22,6.909]
[1641494679043,94.04349,153.29,153.22,6.909]
[1641494680947,94.04349,153.29,153.19,18.12856674]
[1641494682647,66.3787,153.29,153.19,18.12856674]
[1641494683148,66.3787,153.29,153.21,27.66479]
[1641494684251,66.3787,153.29,153.22,6.90270925]
[1641494684450,27.66479,153.3,153.22,11.83770925]
[1641494685850,31.66479,153.3,153.22,11.83770925]
[1641494686453,27.66479,153.3,153.22,11.83770925]
[1641494688254,62.052,153.32,153.22,11.83770925]
[1641494688454,62.052,153.32,153.22,76.21290925]
[1641494689154,62.052,153.32,153.24,27.66479]
[1641494690254,62.052,153.32,153.24,33.46379]
[1641494691258,62.052,153.32,153.25,6.91079061]
[1641494691955,27.66479,153.34,153.26,3.9999]
[1641494692155,27.66479,153.34,153.25,10.91069061]
[1641494692356,27.66479,153.34,153.28,3.9999]
[1641494692555,64.392,153.35,153.28,4.462]
[1641494693657,64.392,153.35,153.27,27.66479]
[1641494697566,64.392,153.35,153.3,13.67338957]
[1641494697765,64.392,153.35,153.3,20.49538957]
[1641494698565,13.67338957,153.36,153.3,6.822]
[1641494699167,13.67338957,153.36,153.3,10.8219]
[1641494699367,13.67338957,153.39,153.32,13.67338957]
[1641494700571,13.67338957,153.38,153.31,63.9396]
[1641494701370,13.67338957,153.37,153.32,27.66479]
[1641494701571,13.67338957,153.37,153.31,63.9396]
[1641494702071,13.67338957,153.37,153.3,13.67338957]
[1641494702471,13.67338957,153.38,153.31,13.67338957]
[1641494702672,67.2831,153.37,153.31,13.67338957]
[1641494703272,67.2831,153.37,153.31,41.33817957]
[1641494704073,67.2831,153.37,153.31,27.66479]
[1641494705175,80.95648957,153.37,153.31,27.66479]
[1641494706377,3.15617537,153.36,153.32,1.44194575]
[1641494707878,67.2831,153.37,153.28,65.1835]
[1641494709881,16.95135892,153.36,153.29,22.14748469]
[1641494710082,13.79494921,153.35,153.29,1.44190669]
[1641494710482,14.63948527,153.36,153.29,1.44190669]
[1641494711083,13.79570697,153.35,153.29,1.44190669]
[1641494711484,14.63948527,153.36,153.27,41.45973921]
[1641494711485,13.79570697,153.34,153.27,41.45973921]
[1641494711685,18.21470697,153.34,153.27,13.79494921]
[1641494712085,13.79684561,153.33,153.28,1.44178027]
[1641494712485,18.63948527,153.36,153.26,13.79494921]
[1641494712685,3.15640971,153.33,153.26,22.14743516]
[1641494713184,4.0,153.34,153.26,22.14743516]
[1641494713387,13.79685458,153.33,153.26,22.14743516]
[1641494713789,3.15717186,153.33,153.26,22.14743516]
[1641494714187,64.72057186,153.33,153.26,22.14743516]
[1641494714388,13.79784774,153.32,153.26,1.44175809]
[1641494714590,17.79784774,153.32,153.26,1.44175809]
[1641494714788,13.79784774,153.32,153.26,1.44175809]
[1641494714989,17.79784774,153.32,153.26,1.44175809]
[1641494715189,65.5634,153.33,153.28,13.79494921]
[1641494715389,4.0,153.32,153.28,13.79494921]
[1641494715988,4.0,153.32,153.27,13.79494921]
[1641494716189,64.54817144,153.33,153.27,13.79494921]
[1641494717194,60.54817144,153.33,153.27,13.79494921]
[1641494717392,3.15776914,153.32,153.27,20.38394921]
[1641494717592,3.15776914,153.32,153.29,27.66479]
[1641494718394,16.9559583,153.38,153.31,13.79494921]
[1641494718596,16.9559583,153.38,153.31,20.16694921]
[1641494719595,3.15776914,153.38,153.32,15.2367073]
[1641494720397,3.15776914,153.38,153.32,13.79494921]
[1641494721202,3.15776914,153.38,153.32,15.2367073]
[1641494721804,7.15776914,153.38,153.32,15.2367073]
[1641494722004,94.08889,153.39,153.3,22.14746587]
[1641494722804,90.08889,153.39,153.3,22.14746587]
[1641494723004,13.79818916,153.37,153.3,22.14746587]
[1641494723805,13.79818916,153.37,153.3,1.44175809]
[1641494725412,13.79818916,153.37,153.3,22.14713739]
[1641494725707,4.0,153.36,153.3,22.14713739]